[Event "Late-Titled-Tuesday-Blitz-January-16-2024"]
[Site "Chess.com"]
[Date "2024.01.16"]
[Round "10"]
[White "reevecanada"]
[Black "masnyszachistaaa"]
[Result "1-0"]
[WhiteElo "2642"]
[BlackElo "2523"]
[TimeControl "180+1"]
[EndTime "15:56:00 PST"]
[Termination "reevecanada won by resignation"]

1. d4 {[%clk 0:03:00.9]} 1... Nf6 {[%clk 0:02:58.3]} 2. Nc3 {[%clk 0:02:59]}
2... d5 {[%clk 0:02:57.1]} 3. Bf4 {[%clk 0:02:58.8]} 3... a6 {[%clk 0:02:55.1]}
4. e3 {[%clk 0:02:57]} 4... e6 {[%clk 0:02:54.5]} 5. Bd3 {[%clk 0:02:56.9]} 5...
c5 {[%clk 0:02:53.9]} 6. Nf3 {[%clk 0:02:56.6]} 6... c4 {[%clk 0:02:49.7]} 7.
Be2 {[%clk 0:02:56.4]} 7... Nc6 {[%clk 0:02:49.3]} 8. Ne5 {[%clk 0:02:55.4]}
8... Nxe5 {[%clk 0:01:46.9]} 9. dxe5 {[%clk 0:02:51.4]} 9... Nd7 {[%clk
0:01:46.1]} 10. e4 {[%clk 0:02:50.1]} 10... d4 {[%clk 0:01:27.4]} 11. Qxd4
{[%clk 0:02:48.8]} 11... b5 {[%clk 0:01:27.9]} 12. a4 {[%clk 0:02:43.9]} 12...
Bc5 {[%clk 0:01:23.4]} 13. Qd2 {[%clk 0:02:42.4]} 13... Rb8 {[%clk 0:01:23]} 14.
axb5 {[%clk 0:02:37.1]} 14... axb5 {[%clk 0:01:23.9]} 15. O-O {[%clk 0:02:34.9]}
15... O-O {[%clk 0:01:21.4]} 16. Rfd1 {[%clk 0:02:32.3]} 16... Qc7 {[%clk
0:01:10.9]} 17. Nd5 {[%clk 0:02:17.9]} 17... exd5 {[%clk 0:01:09.5]} 18. e6
{[%clk 0:02:18.1]} 18... Bd6 {[%clk 0:00:31.9]} 19. Bxd6 {[%clk 0:02:13.3]}
19... Qxd6 {[%clk 0:00:32.8]} 20. exd7 {[%clk 0:02:13.3]} 20... Bxd7 {[%clk
0:00:32.2]} 21. Qxd5 {[%clk 0:02:13.3]} 21... Qxd5 {[%clk 0:00:31.2]} 22. exd5
{[%clk 0:02:14.2]} 22... Rfe8 {[%clk 0:00:27.4]} 23. Bf3 {[%clk 0:02:14.4]}
23... b4 {[%clk 0:00:17.3]} 24. Ra7 {[%clk 0:02:11.9]} 24... Bf5 {[%clk
0:00:17]} 25. c3 {[%clk 0:02:09.9]} 25... bxc3 {[%clk 0:00:16.7]} 26. bxc3
{[%clk 0:02:10.3]} 26... Red8 {[%clk 0:00:15.9]} 27. d6 {[%clk 0:02:09.4]} 27...
Kf8 {[%clk 0:00:14.9]} 28. g4 {[%clk 0:02:07.4]} 28... Be6 {[%clk 0:00:14.1]}
29. Ra6 {[%clk 0:01:59.6]} 29... h6 {[%clk 0:00:12]} 30. Kg2 {[%clk 0:01:56.2]}
30... Rb3 {[%clk 0:00:11.6]} 31. Rc1 {[%clk 0:01:55.9]} 31... Rb2 {[%clk
0:00:10.4]} 32. Kg3 {[%clk 0:01:55.1]} 32... Rd2 {[%clk 0:00:10.5]} 33. Rd1
{[%clk 0:01:46.8]} 33... Rc2 {[%clk 0:00:10.6]} 34. Ra3 {[%clk 0:01:44.9]} 34...
Rb2 {[%clk 0:00:10.7]} 35. Ra8 {[%clk 0:01:37.7]} 35... Rxa8 {[%clk 0:00:06.7]}
36. Bxa8 {[%clk 0:01:38.6]} 36... Ke8 {[%clk 0:00:06.8]} 37. Bc6+ {[%clk
0:01:36.7]} 37... Kd8 {[%clk 0:00:06.9]} 38. Ra1 {[%clk 0:01:35.9]} 38... Rb8
{[%clk 0:00:05.3]} 39. Ra7 {[%clk 0:01:35]} 39... Rc8 {[%clk 0:00:04.3]} 40. Ba4
{[%clk 0:01:34.5]} 40... Rb8 {[%clk 0:00:02.7]} 41. f4 {[%clk 0:01:34.2]} 41...
g6 {[%clk 0:00:02.6]} 42. f5 {[%clk 0:01:31.5]} 42... gxf5 {[%clk 0:00:02.1]}
43. gxf5 {[%clk 0:01:32.4]} 43... Bd5 {[%clk 0:00:02.8]} 44. Rd7+ {[%clk
0:01:29.5]} 44... Kc8 {[%clk 0:00:01.7]} 45. Rc7+ {[%clk 0:01:23.5]} 45... Kd8
{[%clk 0:00:01.9]} 46. Kf4 {[%clk 0:01:23.2]} 46... f6 {[%clk 0:00:01.6]} 47.
Rd7+ {[%clk 0:01:22.4]} 47... Kc8 {[%clk 0:00:01.8]} 48. Rh7 {[%clk 0:01:21.3]}
48... Rb6 {[%clk 0:00:01.9]} 49. d7+ {[%clk 0:01:18.2]} 49... Kc7 {[%clk
0:00:01.6]} 50. Rh8 {[%clk 0:01:18.7]} 50... Rd6 {[%clk 0:00:02.2]} 51. Rc8+
{[%clk 0:01:18.4]} 51... Kb7 {[%clk 0:00:02.1]} 52. d8=Q {[%clk 0:01:18.8]}
52... Rxd8 {[%clk 0:00:02.4]} 53. Rxd8 {[%clk 0:01:19.7]} 1-0

[Event "Late-Titled-Tuesday-Blitz-January-16-2024"]
[Site "Chess.com"]
[Date "2024.01.16"]
[Round "10"]
[White "tptagain"]
[Black "Rodalquilar"]
[Result "1-0"]
[WhiteElo "2950"]
[BlackElo "2729"]
[TimeControl "180+1"]
[EndTime "15:56:01 PST"]
[Termination "tptagain won by resignation"]

1. Nf3 {[%clk 0:03:00.9]} 1... d5 {[%clk 0:03:00]} 2. d4 {[%clk 0:03:01.4]} 2...
Nf6 {[%clk 0:03:00]} 3. e3 {[%clk 0:03:02.1]} 3... g6 {[%clk 0:02:59.6]} 4. c4
{[%clk 0:03:01.9]} 4... dxc4 {[%clk 0:02:58.9]} 5. Bxc4 {[%clk 0:03:01.6]} 5...
Bg7 {[%clk 0:02:59.4]} 6. O-O {[%clk 0:03:01.7]} 6... O-O {[%clk 0:02:59.9]} 7.
h3 {[%clk 0:03:00.9]} 7... Ne8 {[%clk 0:03:00]} 8. Nc3 {[%clk 0:02:58.9]} 8...
Nd6 {[%clk 0:03:00.3]} 9. Bd3 {[%clk 0:02:58.6]} 9... Nc6 {[%clk 0:02:57.7]} 10.
d5 {[%clk 0:02:28.4]} 10... Ne5 {[%clk 0:02:56.7]} 11. Nxe5 {[%clk 0:02:26.1]}
11... Bxe5 {[%clk 0:02:57]} 12. e4 {[%clk 0:02:26.4]} 12... e6 {[%clk 0:02:21]}
13. Qf3 {[%clk 0:02:19.5]} 13... exd5 {[%clk 0:02:15.7]} 14. exd5 {[%clk
0:02:12.6]} 14... f5 {[%clk 0:02:15.6]} 15. Bf4 {[%clk 0:02:07.3]} 15... Bxf4
{[%clk 0:01:44.4]} 16. Qxf4 {[%clk 0:02:08.2]} 16... Bd7 {[%clk 0:01:44.6]} 17.
Rac1 {[%clk 0:02:07.4]} 17... Re8 {[%clk 0:01:36.4]} 18. Ne2 {[%clk 0:02:02.8]}
18... Rc8 {[%clk 0:01:35.3]} 19. Qd4 {[%clk 0:01:58.6]} 19... a6 {[%clk
0:01:28.8]} 20. Nf4 {[%clk 0:01:55.7]} 20... Kf7 {[%clk 0:01:16.7]} 21. Rc2
{[%clk 0:01:32.2]} 21... Qf6 {[%clk 0:01:07.5]} 22. Qb4 {[%clk 0:01:32.4]} 22...
g5 {[%clk 0:00:55.5]} 23. Nh5 {[%clk 0:01:29.4]} 23... Qe5 {[%clk 0:00:55.6]}
24. Rfc1 {[%clk 0:01:21.3]} 24... Qxd5 {[%clk 0:00:50.8]} 25. Rxc7 {[%clk
0:01:14.7]} 25... Nb5 {[%clk 0:00:27.5]} 26. Rxc8 {[%clk 0:00:55.8]} 26... Rxc8
{[%clk 0:00:27.5]} 27. Rxc8 {[%clk 0:00:54.8]} 27... Qxd3 {[%clk 0:00:27.1]} 28.
Qf8+ {[%clk 0:00:51.8]} 28... Ke6 {[%clk 0:00:20.3]} 29. Ng7+ {[%clk 0:00:48.1]}
29... Ke5 {[%clk 0:00:16]} 30. Qe7+ {[%clk 0:00:38.2]} 30... Kd5 {[%clk
0:00:08]} 31. Qxd7+ {[%clk 0:00:37.7]} 31... Nd6 {[%clk 0:00:08.6]} 32. Qxd6+
{[%clk 0:00:36]} 32... Kxd6 {[%clk 0:00:08.2]} 33. Rd8+ {[%clk 0:00:36.4]} 33...
Ke5 {[%clk 0:00:08.8]} 34. Rxd3 {[%clk 0:00:37]} 1-0

[Event "Late-Titled-Tuesday-Blitz-January-16-2024"]
[Site "Chess.com"]
[Date "2024.01.16"]
[Round "10"]
[White "DraningWaterHi"]
[Black "Quattroporte300"]
[Result "1-0"]
[WhiteElo "2255"]
[BlackElo "2401"]
[TimeControl "180+1"]
[EndTime "15:56:19 PST"]
[Termination "DraningWaterHi won on time"]

1. d4 {[%clk 0:03:00.9]} 1... g6 {[%clk 0:02:57.9]} 2. c4 {[%clk 0:03:00]} 2...
Bg7 {[%clk 0:02:56.8]} 3. e4 {[%clk 0:03:00.4]} 3... d6 {[%clk 0:02:56.4]} 4.
Nc3 {[%clk 0:02:58.9]} 4... Nd7 {[%clk 0:02:56.9]} 5. g3 {[%clk 0:02:57.7]} 5...
e5 {[%clk 0:02:57.1]} 6. Nf3 {[%clk 0:02:56.5]} 6... exd4 {[%clk 0:02:56.3]} 7.
Nxd4 {[%clk 0:02:56.5]} 7... Ne7 {[%clk 0:02:56.4]} 8. Bg2 {[%clk 0:02:56.7]}
8... O-O {[%clk 0:02:57.1]} 9. O-O {[%clk 0:02:56.6]} 9... c6 {[%clk 0:02:57.7]}
10. Nde2 {[%clk 0:02:53.5]} 10... Ne5 {[%clk 0:02:54]} 11. b3 {[%clk 0:02:53.2]}
11... f5 {[%clk 0:02:45.6]} 12. f4 {[%clk 0:02:50.4]} 12... Nf7 {[%clk
0:02:45.3]} 13. Bb2 {[%clk 0:02:49.9]} 13... fxe4 {[%clk 0:02:42.6]} 14. Bxe4
{[%clk 0:02:48.6]} 14... Bh3 {[%clk 0:02:42.6]} 15. Bg2 {[%clk 0:02:46.9]} 15...
Qd7 {[%clk 0:02:39.6]} 16. Nd4 {[%clk 0:02:42.6]} 16... Rae8 {[%clk 0:02:34.9]}
17. Qd2 {[%clk 0:02:38.8]} 17... Bxg2 {[%clk 0:02:06.4]} 18. Kxg2 {[%clk
0:02:34]} 18... Bxd4 {[%clk 0:02:00.8]} 19. Qxd4 {[%clk 0:02:32.6]} 19... Nf5
{[%clk 0:02:01.1]} 20. Qxa7 {[%clk 0:02:29]} 20... Ne3+ {[%clk 0:01:59.6]} 21.
Kg1 {[%clk 0:02:29.5]} 21... Nxf1 {[%clk 0:01:59]} 22. Rxf1 {[%clk 0:02:30.4]}
22... Qe7 {[%clk 0:01:46.3]} 23. Nd1 {[%clk 0:02:20.7]} 23... c5 {[%clk
0:01:32.4]} 24. Qa5 {[%clk 0:02:14.5]} 24... Nh6 {[%clk 0:01:14.7]} 25. Qc3
{[%clk 0:02:12.5]} 25... Kf7 {[%clk 0:01:14.5]} 26. Qg7+ {[%clk 0:02:11.4]}
26... Ke6 {[%clk 0:01:11]} 27. Qxh6 {[%clk 0:02:12]} 27... Kd7 {[%clk
0:01:08.9]} 28. Qh3+ {[%clk 0:02:10.1]} 28... Kc7 {[%clk 0:01:07.8]} 29. Qg2
{[%clk 0:02:10.2]} 29... Qe2 {[%clk 0:01:05.7]} 30. Nc3 {[%clk 0:02:01.7]} 30...
Qxg2+ {[%clk 0:00:57.9]} 31. Kxg2 {[%clk 0:02:02.6]} 31... Kc6 {[%clk
0:00:57.9]} 32. Rf2 {[%clk 0:02:01.6]} 32... Re1 {[%clk 0:00:56.2]} 33. Nd5
{[%clk 0:01:57.4]} 33... Rfe8 {[%clk 0:00:53.6]} 34. Bc3 {[%clk 0:01:55]} 34...
Rc1 {[%clk 0:00:45.5]} 35. Bb2 {[%clk 0:01:38.8]} 35... Rb1 {[%clk 0:00:37.3]}
36. Bf6 {[%clk 0:01:37.6]} 36... Ree1 {[%clk 0:00:29.1]} 37. Kh3 {[%clk
0:01:30.9]} 37... Rf1 {[%clk 0:00:23.7]} 38. Re2 {[%clk 0:01:30.3]} 38... Rbe1
{[%clk 0:00:24.3]} 39. Rd2 {[%clk 0:01:27.3]} 39... Rd1 {[%clk 0:00:22.8]} 40.
Rxd1 {[%clk 0:01:21.3]} 40... Rxd1 {[%clk 0:00:22.3]} 41. Nc3 {[%clk 0:01:21.9]}
41... Rd2 {[%clk 0:00:18.3]} 42. g4 {[%clk 0:01:19.3]} 42... Rd3+ {[%clk
0:00:12.7]} 43. Kh4 {[%clk 0:01:19.4]} 43... b6 {[%clk 0:00:12.3]} 44. Bh8
{[%clk 0:01:16]} 44... Rf3 {[%clk 0:00:12.2]} 45. Kg5 {[%clk 0:01:15.2]} 45...
h6+ {[%clk 0:00:11.4]} 46. Kxg6 {[%clk 0:01:13.7]} 46... Rxf4 {[%clk 0:00:11.5]}
47. h3 {[%clk 0:01:13.4]} 47... Rf3 {[%clk 0:00:11.4]} 48. h4 {[%clk 0:01:12.4]}
48... Rf8 {[%clk 0:00:08.6]} 49. Bg7 {[%clk 0:01:12.2]} 49... Rf4 {[%clk
0:00:07.9]} 50. Kh5 {[%clk 0:01:11.8]} 50... Rf3 {[%clk 0:00:05.6]} 51. Kxh6
{[%clk 0:01:11.3]} 51... Kd7 {[%clk 0:00:06.1]} 52. g5 {[%clk 0:01:11.5]} 52...
Ke6 {[%clk 0:00:06.4]} 53. h5 {[%clk 0:01:12]} 53... Kf7 {[%clk 0:00:03.9]} 54.
g6+ {[%clk 0:01:11.8]} 54... Kg8 {[%clk 0:00:04.3]} 55. Nd5 {[%clk 0:01:10.1]}
1-0

[Event "Late-Titled-Tuesday-Blitz-January-16-2024"]
[Site "Chess.com"]
[Date "2024.01.16"]
[Round "10"]
[White "jk13"]
[Black "wild3000"]
[Result "0-1"]
[WhiteElo "2653"]
[BlackElo "2414"]
[TimeControl "180+1"]
[EndTime "15:56:21 PST"]
[Termination "wild3000 won on time"]

1. Nf3 {[%clk 0:02:56.7]} 1... d5 {[%clk 0:02:59.7]} 2. g3 {[%clk 0:02:56.7]}
2... e6 {[%clk 0:03:00.5]} 3. Bg2 {[%clk 0:02:56.9]} 3... Nf6 {[%clk 0:03:01.4]}
4. O-O {[%clk 0:02:57.3]} 4... b6 {[%clk 0:03:00.8]} 5. d3 {[%clk 0:02:58.2]}
5... Bb7 {[%clk 0:03:01.2]} 6. Nbd2 {[%clk 0:02:59.1]} 6... c5 {[%clk
0:03:01.4]} 7. e4 {[%clk 0:02:58.8]} 7... Be7 {[%clk 0:03:01.7]} 8. e5 {[%clk
0:02:58.8]} 8... Nfd7 {[%clk 0:03:01.7]} 9. Re1 {[%clk 0:02:59.7]} 9... Nc6
{[%clk 0:03:02]} 10. Nf1 {[%clk 0:03:00.3]} 10... a5 {[%clk 0:02:59.9]} 11. h4
{[%clk 0:03:00.5]} 11... a4 {[%clk 0:03:00.2]} 12. a3 {[%clk 0:03:01.1]} 12...
b5 {[%clk 0:03:00]} 13. Bf4 {[%clk 0:03:01.1]} 13... b4 {[%clk 0:02:58.4]} 14.
Ne3 {[%clk 0:03:01.2]} 14... Qb6 {[%clk 0:02:55.5]} 15. h5 {[%clk 0:02:58.8]}
15... h6 {[%clk 0:02:55.5]} 16. Qd2 {[%clk 0:02:54.7]} 16... Nd4 {[%clk
0:02:51.9]} 17. Nxd4 {[%clk 0:02:40.8]} 17... cxd4 {[%clk 0:02:51.6]} 18. Ng4
{[%clk 0:02:41.7]} 18... b3 {[%clk 0:02:39.2]} 19. cxb3 {[%clk 0:02:30.3]} 19...
Qxb3 {[%clk 0:02:39.3]} 20. Rec1 {[%clk 0:02:17.2]} 20... Nc5 {[%clk 0:02:36]}
21. Bf1 {[%clk 0:02:17]} 21... Qb6 {[%clk 0:02:31.8]} 22. Qd1 {[%clk 0:01:52.2]}
22... Nb3 {[%clk 0:02:28.7]} 23. Nh2 {[%clk 0:01:50.4]} 23... Nxa1 {[%clk
0:02:25]} 24. Rxa1 {[%clk 0:01:50.6]} 24... Qb3 {[%clk 0:02:12.7]} 25. Qg4
{[%clk 0:01:49.5]} 25... Qxb2 {[%clk 0:02:02.4]} 26. Qxg7 {[%clk 0:01:41.7]}
26... Qxa1 {[%clk 0:01:57.9]} 27. Qxh8+ {[%clk 0:01:41.8]} 27... Kd7 {[%clk
0:01:58.8]} 28. Qxh6 {[%clk 0:01:38.4]} 28... Qxa3 {[%clk 0:01:54.9]} 29. Qg7
{[%clk 0:01:04.5]} 29... Rf8 {[%clk 0:01:43.8]} 30. h6 {[%clk 0:00:35]} 30...
Qc5 {[%clk 0:01:42.7]} 31. h7 {[%clk 0:00:17.3]} 31... Qc8 {[%clk 0:01:42.1]}
32. Ng4 {[%clk 0:00:15.1]} 32... a3 {[%clk 0:01:40.9]} 33. Bc1 {[%clk
0:00:09.6]} 33... Qxc1 {[%clk 0:01:35.9]} 34. Qxf8 {[%clk 0:00:09]} 34... Bxf8
{[%clk 0:01:34.1]} 35. h8=Q {[%clk 0:00:09.5]} 35... Be7 {[%clk 0:01:12.6]} 36.
Qb8 {[%clk 0:00:09.6]} 36... Qc7 {[%clk 0:01:12.1]} 37. Qa7 {[%clk 0:00:09.6]}
37... Qc6 {[%clk 0:01:01.5]} 38. Nf6+ {[%clk 0:00:06.8]} 38... Bxf6 {[%clk
0:01:01.2]} 39. exf6 {[%clk 0:00:07.7]} 39... e5 {[%clk 0:00:58.5]} 40. Qxa3
{[%clk 0:00:06.7]} 40... Qxf6 {[%clk 0:00:57.1]} 41. Bh3+ {[%clk 0:00:06.7]}
41... Kc7 {[%clk 0:00:52.9]} 42. Qc5+ {[%clk 0:00:06.1]} 42... Kb8 {[%clk
0:00:53.3]} 43. Bg2 {[%clk 0:00:04.7]} 43... Qe6 {[%clk 0:00:47.7]} 44. Qb5
{[%clk 0:00:01.4]} 44... Kc7 {[%clk 0:00:46.7]} 0-1

[Event "Late-Titled-Tuesday-Blitz-January-16-2024"]
[Site "Chess.com"]
[Date "2024.01.16"]
[Round "10"]
[White "Matrix3x3a"]
[Black "diamonds13"]
[Result "1-0"]
[WhiteElo "2477"]
[BlackElo "2353"]
[TimeControl "180+1"]
[EndTime "15:56:22 PST"]
[Termination "Matrix3x3a won by resignation"]

1. d4 {[%clk 0:03:00.9]} 1... f5 {[%clk 0:02:56.7]} 2. Bg5 {[%clk 0:02:58.3]}
2... h6 {[%clk 0:02:56.2]} 3. Bh4 {[%clk 0:02:58.4]} 3... g5 {[%clk 0:02:52.7]}
4. Bg3 {[%clk 0:02:59]} 4... d6 {[%clk 0:02:51]} 5. e3 {[%clk 0:02:57.9]} 5...
Nf6 {[%clk 0:02:48.9]} 6. h4 {[%clk 0:02:50.4]} 6... Bg7 {[%clk 0:02:45.8]} 7.
hxg5 {[%clk 0:02:47.2]} 7... hxg5 {[%clk 0:02:44.3]} 8. Rxh8+ {[%clk 0:02:48.1]}
8... Bxh8 {[%clk 0:02:37.5]} 9. Nh3 {[%clk 0:02:47.7]} 9... f4 {[%clk
0:02:31.6]} 10. exf4 {[%clk 0:02:43.3]} 10... Bxh3 {[%clk 0:02:28.8]} 11. gxh3
{[%clk 0:02:44.2]} 11... gxf4 {[%clk 0:02:25.3]} 12. Bxf4 {[%clk 0:02:45.1]}
12... c5 {[%clk 0:02:24]} 13. dxc5 {[%clk 0:02:41]} 13... Qa5+ {[%clk
0:02:23.1]} 14. Nc3 {[%clk 0:02:39.5]} 14... Qxc5 {[%clk 0:02:18.3]} 15. Qf3
{[%clk 0:02:38.2]} 15... Nc6 {[%clk 0:02:15]} 16. O-O-O {[%clk 0:02:35.9]} 16...
O-O-O {[%clk 0:02:13.5]} 17. Be3 {[%clk 0:02:35]} 17... Qa5 {[%clk 0:02:12.5]}
18. Kb1 {[%clk 0:02:32.4]} 18... Nd7 {[%clk 0:02:05.4]} 19. Nd5 {[%clk
0:02:26.4]} 19... e6 {[%clk 0:02:04.6]} 20. Nf4 {[%clk 0:02:26.1]} 20... Qe5
{[%clk 0:02:00.6]} 21. c3 {[%clk 0:02:24.2]} 21... Rf8 {[%clk 0:01:50]} 22. Qg4
{[%clk 0:02:22.3]} 22... Rf5 {[%clk 0:01:33.9]} 23. Qg8+ {[%clk 0:02:14.2]}
23... Nf8 {[%clk 0:01:33.8]} 24. Bd3 {[%clk 0:02:03.7]} 24... Ne7 {[%clk
0:01:32.1]} 25. Qg3 {[%clk 0:01:56]} 25... Rg5 {[%clk 0:01:29.4]} 26. Qf3 {[%clk
0:01:55.8]} 26... Nf5 {[%clk 0:01:26.2]} 27. Bxa7 {[%clk 0:01:43.3]} 27... Qa5
{[%clk 0:01:17.2]} 28. Be3 {[%clk 0:01:36.8]} 28... Nxe3 {[%clk 0:01:12.9]} 29.
Qxe3 {[%clk 0:01:35.5]} 29... Re5 {[%clk 0:01:10.6]} 30. Qd2 {[%clk 0:01:31.8]}
30... Nd7 {[%clk 0:01:10.4]} 31. Bc2 {[%clk 0:01:21.4]} 31... d5 {[%clk
0:00:50]} 32. h4 {[%clk 0:01:10.6]} 32... Bf6 {[%clk 0:00:49.2]} 33. Ng6 {[%clk
0:01:08.1]} 33... Rh5 {[%clk 0:00:43.2]} 34. Qe2 {[%clk 0:01:07.5]} 34... Ne5
{[%clk 0:00:41.6]} 35. Qxh5 {[%clk 0:01:02.2]} 35... Nc4 {[%clk 0:00:41.6]} 36.
Qf3 {[%clk 0:00:47.7]} 36... Qd8 {[%clk 0:00:24.5]} 37. Bb3 {[%clk 0:00:43.9]}
37... Na5 {[%clk 0:00:16.1]} 38. h5 {[%clk 0:00:43.8]} 38... Bg7 {[%clk
0:00:14.5]} 39. Qg4 {[%clk 0:00:38.9]} 39... Qb6 {[%clk 0:00:11.9]} 40. Bxd5
{[%clk 0:00:32.7]} 40... Bxc3 {[%clk 0:00:10.3]} 41. Qxe6+ {[%clk 0:00:32.2]}
1-0

[Event "Late-Titled-Tuesday-Blitz-January-16-2024"]
[Site "Chess.com"]
[Date "2024.01.16"]
[Round "10"]
[White "Msb2"]
[Black "krzyzan94"]
[Result "1-0"]
[WhiteElo "3026"]
[BlackElo "2839"]
[TimeControl "180+1"]
[EndTime "15:56:23 PST"]
[Termination "Msb2 won by resignation"]

1. d4 {[%clk 0:03:00.9]} 1... Nf6 {[%clk 0:02:59.8]} 2. c4 {[%clk 0:03:00.2]}
2... d6 {[%clk 0:02:58.3]} 3. Nf3 {[%clk 0:03:00.1]} 3... g6 {[%clk 0:02:58.5]}
4. Nc3 {[%clk 0:03:00.6]} 4... Bf5 {[%clk 0:02:58.7]} 5. d5 {[%clk 0:03:01.2]}
5... Bg7 {[%clk 0:02:58.4]} 6. Nd4 {[%clk 0:03:01.8]} 6... Bd7 {[%clk
0:02:54.2]} 7. e4 {[%clk 0:03:02]} 7... c5 {[%clk 0:02:54.1]} 8. Nc2 {[%clk
0:02:58.6]} 8... O-O {[%clk 0:02:53.8]} 9. Be2 {[%clk 0:02:58.7]} 9... e6 {[%clk
0:02:43.9]} 10. O-O {[%clk 0:02:57.4]} 10... e5 {[%clk 0:02:42.7]} 11. f4 {[%clk
0:02:50]} 11... exf4 {[%clk 0:02:35.1]} 12. Bxf4 {[%clk 0:02:50.7]} 12... Qe7
{[%clk 0:02:29.3]} 13. Bf3 {[%clk 0:02:48]} 13... Ne8 {[%clk 0:02:24.8]} 14. Qd2
{[%clk 0:02:46.7]} 14... Be5 {[%clk 0:02:19.1]} 15. Rae1 {[%clk 0:02:46.4]}
15... Ng7 {[%clk 0:02:11.4]} 16. h3 {[%clk 0:02:38]} 16... a6 {[%clk 0:02:03.7]}
17. a4 {[%clk 0:02:35.4]} 17... Be8 {[%clk 0:01:56.9]} 18. Bg4 {[%clk
0:02:31.3]} 18... Nd7 {[%clk 0:01:53.7]} 19. Bxd7 {[%clk 0:02:28.9]} 19... Bxd7
{[%clk 0:01:53.9]} 20. Bxe5 {[%clk 0:02:08]} 20... Qxe5 {[%clk 0:01:52.7]} 21.
Qf4 {[%clk 0:02:08.7]} 21... Rae8 {[%clk 0:01:42.3]} 22. Qf6 {[%clk 0:01:58.5]}
22... Nh5 {[%clk 0:01:34.9]} 23. Qxe5 {[%clk 0:01:57.8]} 23... Rxe5 {[%clk
0:01:35.8]} 24. g4 {[%clk 0:01:47.5]} 24... Ng7 {[%clk 0:01:33.5]} 25. Kg2
{[%clk 0:01:48]} 25... Rfe8 {[%clk 0:01:32.7]} 26. Rf6 {[%clk 0:01:47.7]} 26...
h5 {[%clk 0:01:21.6]} 27. Rxd6 {[%clk 0:01:47.9]} 27... Bc8 {[%clk 0:01:22.3]}
28. Kg3 {[%clk 0:01:47.7]} 28... hxg4 {[%clk 0:01:22.5]} 29. hxg4 {[%clk
0:01:48.6]} 29... Rg5 {[%clk 0:01:23.1]} 30. Ne3 {[%clk 0:01:40]} 30... Rge5
{[%clk 0:00:51.6]} 31. Rf6 {[%clk 0:01:37.3]} 31... Rg5 {[%clk 0:00:36.6]} 32.
Kf4 {[%clk 0:01:25.5]} 32... Rge5 {[%clk 0:00:35.5]} 33. a5 {[%clk 0:01:21.6]}
33... Bd7 {[%clk 0:00:28.1]} 34. Nf1 {[%clk 0:01:16.2]} 34... Rh5 {[%clk
0:00:20.5]} 35. Rd6 {[%clk 0:01:04.3]} 35... Rh3 {[%clk 0:00:02.6]} 36. Rxd7
{[%clk 0:01:00.3]} 36... f6 {[%clk 0:00:02.1]} 37. Ng3 {[%clk 0:00:57.6]} 37...
f5 {[%clk 0:00:01.8]} 38. gxf5 {[%clk 0:00:48.5]} 38... gxf5 {[%clk 0:00:02.7]}
39. e5 {[%clk 0:00:49.1]} 39... Rh4+ {[%clk 0:00:02]} 40. Kf3 {[%clk 0:00:48.1]}
40... Rxc4 {[%clk 0:00:02.6]} 41. e6 {[%clk 0:00:43.5]} 41... f4 {[%clk
0:00:02.2]} 42. Rxg7+ {[%clk 0:00:42.1]} 42... Kxg7 {[%clk 0:00:02.4]} 43. Nf5+
{[%clk 0:00:42.9]} 43... Kf6 {[%clk 0:00:02.8]} 44. Nd6 {[%clk 0:00:43.8]} 44...
Rxc3+ {[%clk 0:00:02.1]} 45. bxc3 {[%clk 0:00:44.7]} 45... Rh8 {[%clk
0:00:01.9]} 46. e7 {[%clk 0:00:44.6]} 1-0

[Event "Late-Titled-Tuesday-Blitz-January-16-2024"]
[Site "Chess.com"]
[Date "2024.01.16"]
[Round "10"]
[White "ChessBrainiacOnTwitch"]
[Black "NMJeevanK"]
[Result "1-0"]
[WhiteElo "2793"]
[BlackElo "2582"]
[TimeControl "180+1"]
[EndTime "15:56:27 PST"]
[Termination "ChessBrainiacOnTwitch won by resignation"]

1. e4 {[%clk 0:03:00.9]} 1... e5 {[%clk 0:02:59.6]} 2. Nf3 {[%clk 0:02:58.8]}
2... Nc6 {[%clk 0:03:00.3]} 3. Nc3 {[%clk 0:02:57.5]} 3... Nf6 {[%clk
0:02:58.6]} 4. g3 {[%clk 0:02:57.6]} 4... Be7 {[%clk 0:02:57.7]} 5. Bg2 {[%clk
0:02:55.5]} 5... O-O {[%clk 0:02:58.3]} 6. O-O {[%clk 0:02:56]} 6... d6 {[%clk
0:02:57.9]} 7. d3 {[%clk 0:02:55.9]} 7... b6 {[%clk 0:02:51.2]} 8. h3 {[%clk
0:02:52]} 8... Bb7 {[%clk 0:02:51.5]} 9. Kh2 {[%clk 0:02:47.6]} 9... d5 {[%clk
0:02:41.6]} 10. Bg5 {[%clk 0:02:35.5]} 10... d4 {[%clk 0:02:22.3]} 11. Bxf6
{[%clk 0:02:29.9]} 11... Bxf6 {[%clk 0:02:21.9]} 12. Nd5 {[%clk 0:02:30.1]}
12... Nb8 {[%clk 0:02:14.2]} 13. Nxf6+ {[%clk 0:02:21.6]} 13... Qxf6 {[%clk
0:02:15.1]} 14. Nd2 {[%clk 0:02:21.4]} 14... Nd7 {[%clk 0:02:11.4]} 15. f4
{[%clk 0:02:21.4]} 15... exf4 {[%clk 0:02:09.9]} 16. e5 {[%clk 0:02:04.9]} 16...
fxg3+ {[%clk 0:01:59.3]} 17. Kg1 {[%clk 0:02:03.6]} 17... Qxe5 {[%clk
0:01:55.8]} 18. Bxb7 {[%clk 0:02:03.3]} 18... Rae8 {[%clk 0:01:51.6]} 19. Bg2
{[%clk 0:01:58.2]} 19... f5 {[%clk 0:01:40.3]} 20. Qf3 {[%clk 0:01:53.7]} 20...
Nf6 {[%clk 0:01:31.1]} 21. Rae1 {[%clk 0:01:50.3]} 21... Qa5 {[%clk 0:01:31.1]}
22. Nc4 {[%clk 0:01:43]} 22... Qxe1 {[%clk 0:01:19.4]} 23. Rxe1 {[%clk 0:01:42]}
23... Rxe1+ {[%clk 0:01:20.3]} 24. Bf1 {[%clk 0:01:41.7]} 24... Ne4 {[%clk
0:00:48.1]} 25. Kg2 {[%clk 0:01:27.2]} 25... Rc1 {[%clk 0:00:38.2]} 26. dxe4
{[%clk 0:01:17.2]} 26... fxe4 {[%clk 0:00:39.1]} 27. Qxe4 {[%clk 0:01:04.7]}
27... Rcxf1 {[%clk 0:00:39]} 28. Kxg3 {[%clk 0:00:59.8]} 28... c5 {[%clk
0:00:29.8]} 29. Ne5 {[%clk 0:00:57.5]} 29... Rg1+ {[%clk 0:00:26.3]} 30. Kh2
{[%clk 0:00:56.3]} 30... Rgf1 {[%clk 0:00:20.2]} 31. Ng4 {[%clk 0:00:52]} 31...
h5 {[%clk 0:00:17.4]} 32. Qd5+ {[%clk 0:00:52.3]} 32... R8f7 {[%clk 0:00:09.1]}
33. Qxh5 {[%clk 0:00:53.2]} 33... R1f5 {[%clk 0:00:08.2]} 34. Qg6 {[%clk
0:00:51.2]} 34... Kf8 {[%clk 0:00:06.3]} 35. Qd6+ {[%clk 0:00:51.2]} 35... Ke8
{[%clk 0:00:05.4]} 36. Qe6+ {[%clk 0:00:50.5]} 36... Kd8 {[%clk 0:00:05.3]} 37.
Ne5 {[%clk 0:00:49]} 37... Rxe5 {[%clk 0:00:02]} 38. Qxe5 {[%clk 0:00:46.3]}
38... Rf2+ {[%clk 0:00:02.6]} 39. Kg3 {[%clk 0:00:46.7]} 39... Rxc2 {[%clk
0:00:03.2]} 40. Qb8+ {[%clk 0:00:44.6]} 40... Kd7 {[%clk 0:00:02.8]} 41. Qxa7+
{[%clk 0:00:45.5]} 41... Kd6 {[%clk 0:00:03.2]} 42. Qxg7 {[%clk 0:00:45.4]}
42... Rxb2 {[%clk 0:00:03.1]} 43. h4 {[%clk 0:00:45.2]} 43... Kd5 {[%clk
0:00:02.7]} 44. h5 {[%clk 0:00:44.6]} 44... Rxa2 {[%clk 0:00:02.9]} 45. Qf7+
{[%clk 0:00:45]} 45... Ke4 {[%clk 0:00:02.5]} 46. Qxa2 {[%clk 0:00:45.9]} 46...
d3 {[%clk 0:00:03]} 47. h6 {[%clk 0:00:46.5]} 47... Ke3 {[%clk 0:00:03.4]} 48.
h7 {[%clk 0:00:47]} 48... d2 {[%clk 0:00:04.3]} 49. Qb3+ {[%clk 0:00:46.8]}
49... Ke2 {[%clk 0:00:04.7]} 50. h8=Q {[%clk 0:00:46.8]} 50... d1=Q {[%clk
0:00:05.6]} 51. Qe5+ {[%clk 0:00:47.2]} 51... Kd2 {[%clk 0:00:04.6]} 52. Qed5+
{[%clk 0:00:47.5]} 1-0